Workbook

Sheet Input Data
A1: Public Lighting Quantity Inputs | B1: Units | C1: 2020-21 | D1: 2021-22 | E1: 2022-23 | F1: 2023-24 | G1: 2024-25
A3: Opening Population Public Lights
A5: NPL1 (Energex Owned & Operated)
A6: Major Conventional | B6: # | C6: 39792 | D6: 38167 | E6: 34942 | F6: 31178 | G6: 26852 | I6: Source: Energex PL Opex review model. Allocation between NPL1 and NPL2 based on the 2018-19 volume ratio
A7: Minor Conventional | B7: # | C7: 102272 | D7: 98545 | E7: 90920 | F7: 81894 | G7: 71336 | I7: Source: Energex PL Opex review model. Allocation between NPL1 and NPL2 based on the 2018-19 volume ratio
A8: Major LED | B8: # | C8: 2639 | D8: 4944 | E8: 8875 | F8: 13376 | G8: 18466 | I8: Source: Energex PL Opex review model. Allocation between NPL1 and NPL2 based on the 2018-19 volume ratio
A9: Minor LED | B9: # | C9: 6230 | D9: 11713 | E9: 21127 | F9: 31978 | G9: 44393 | I9: Source: Energex PL Opex review model. Allocation between NPL1 and NPL2 based on the 2018-19 volume ratio
A10: Total | B10: # | C10: =SUM(C6:C9) -> 150933 | D10: =SUM(D6:D9) -> 153369 | E10: =SUM(E6:E9) -> 155864 | F10: =SUM(F6:F9) -> 158426 | G10: =SUM(G6:G9) -> 161047
A12: NPL2 (Gifted & Energex Operated)
A13: Major Conventional | B13: # | C13: 48914 | D13: 46917 | E13: 42953 | F13: 38324 | G13: 33008 | I13: Source: Energex PL Opex review model. Allocation between NPL1 and NPL2 based on the 2018-19 volume ratio
A14: Minor Conventional | B14: # | C14: 125716 | D14: 121136 | E14: 111763 | F14: 100667 | G14: 87689 | I14: Source: Energex PL Opex review model. Allocation between NPL1 and NPL2 based on the 2018-19 volume ratio
A15: Major LED | B15: # | C15: 3245 | D15: 6077 | E15: 10910 | F15: 16442 | G15: 22699 | I15: Source: Energex PL Opex review model. Allocation between NPL1 and NPL2 based on the 2018-19 volume ratio
A16: Minor LED | B16: # | C16: 7659 | D16: 14398 | E16: 25971 | F16: 39308 | G16: 54569 | I16: Source: Energex PL Opex review model. Allocation between NPL1 and NPL2 based on the 2018-19 volume ratio
A17: Total | B17: # | C17: =SUM(C13:C16) -> 185534 | D17: =SUM(D13:D16) -> 188528 | E17: =SUM(E13:E16) -> 191597 | F17: =SUM(F13:F16) -> 194741 | G17: =SUM(G13:G16) -> 197965
A18: Total Opening Lights | B18: # | C18: =SUM(C10,C17) -> 336467 | D18: =SUM(D10,D17) -> 341897 | E18: =SUM(E10,E17) -> 347461 | F18: =SUM(F10,F17) -> 353167 | G18: =SUM(G10,G17) -> 359012
A20: Public Lights Additions by Type
A22: NPL1 (Energex Owned & Operated)
A23: Major Conventional | B23: # | C23: 0 | D23: 0 | E23: 0 | F23: 0 | G23: 0
A24: Minor Conventional | B24: # | C24: 0 | D24: 0 | E24: 0 | F24: 0 | G24: 0
A25: Major LED | B25: # | C25: 2043 | D25: 2402 | E25: 2820 | F25: 3188 | G25: 3618
A26: Minor LED | B26: # | C26: 5879 | D26: 6996 | E26: 8295 | F26: 9431 | G26: 10926
A27: Total | B27: # | C27: =SUM(C23:C26) -> 7922 | D27: =SUM(D23:D26) -> 9398 | E27: =SUM(E23:E26) -> 11115 | F27: =SUM(F23:F26) -> 12619 | G27: =SUM(G23:G26) -> 14544
A29: NPL2 (Gifted & Energex Operated)
A30: Major Conventional | B30: # | C30: 0 | D30: 0 | E30: 0 | F30: 0 | G30: 0
A31: Minor Conventional | B31: # | C31: 0 | D31: 0 | E31: 0 | F31: 0 | G31: 0
A32: Major LED | B32: # | C32: 4926 | D32: 5702 | E32: 6604 | F32: 7454 | G32: 8434
A33: Minor LED | B33: # | C33: 10569 | D33: 12329 | E33: 14355 | F33: 16295 | G33: 18700
A34: Total | B34: # | C34: =SUM(C30:C33) -> 15495 | D34: =SUM(D30:D33) -> 18031 | E34: =SUM(E30:E33) -> 20959 | F34: =SUM(F30:F33) -> 23749 | G34: =SUM(G30:G33) -> 27134
A35: Total Additions | B35: # | C35: =SUM(C27,C34) -> 23417 | D35: =SUM(D27,D34) -> 27429 | E35: =SUM(E27,E34) -> 32074 | F35: =SUM(F27,F34) -> 36368 | G35: =SUM(G27,G34) -> 41678
A37: Public Lights Disposals by Type
A39: NPL1 (Energex Owned & Operated)
A40: Major Conventional | B40: # | C40: 2013 | D40: 2332 | E40: 2700 | F40: 3018 | G40: 3398
A41: Minor Conventional | B41: # | C41: 5609 | D41: 6676 | E41: 7935 | F41: 9021 | G41: 10476
A42: Major LED | B42: # | C42: 0 | D42: 0 | E42: 0 | F42: 0 | G42: 0
A43: Minor LED | B43: # | C43: 0 | D43: 0 | E43: 0 | F43: 0 | G43: 0
A44: Total | B44: # | C44: =SUM(C40:C43) -> 7622 | D44: =SUM(D40:D43) -> 9008 | E44: =SUM(E40:E43) -> 10635 | F44: =SUM(F40:F43) -> 12039 | G44: =SUM(G40:G43) -> 13874
A46: NPL2 (Gifted & Energex Operated)
A47: Major Conventional (SV) | B47: # | C47: 3466 | D47: 4232 | E47: 5114 | F47: 5954 | G47: 6914
A48: Minor Conventional (SV) | B48: # | C48: 6964 | D48: 8694 | E48: 10690 | F48: 12600 | G48: 14975
A49: Major LED | B49: # | C49: 0 | D49: 0 | E49: 0 | F49: 0 | G49: 0
A50: Minor LED | B50: # | C50: 0 | D50: 0 | E50: 0 | F50: 0 | G50: 0
A51: Total | B51: # | C51: =SUM(C47:C50) -> 10430 | D51: =SUM(D47:D50) -> 12926 | E51: =SUM(E47:E50) -> 15804 | F51: =SUM(F47:F50) -> 18554 | G51: =SUM(G47:G50) -> 21889
A52: Total Disposals | B52: # | C52: =SUM(C44,C51) -> 18052 | D52: =SUM(D44,D51) -> 21934 | E52: =SUM(E44,E51) -> 26439 | F52: =SUM(F44,F51) -> 30593 | G52: =SUM(G44,G51) -> 35763
A54: Closing Population Public Lights
A56: NPL1 (Energex Owned & Operated)
A57: Major Conventional | B57: # | C57: =C6+C23-C40 -> 37779 | D57: =D6+D23-D40 -> 35835 | E57: 32242 | F57: 28160 | G57: 23454
A58: Minor Conventional | B58: # | C58: =C7+C24-C41 -> 96663 | D58: 91869 | E58: 82985 | F58: 72873 | G58: 60860
A59: Major LED | B59: # | C59: =C8+C25-C42 -> 4682 | D59: 7346 | E59: 11695 | F59: 16564 | G59: 22084
A60: Minor LED | B60: # | C60: =C9+C26-C43 -> 12109 | D60: 18709 | E60: 29422 | F60: 41409 | G60: 55319
A61: Total | B61: # | C61: =SUM(C57:C60) -> 151233 | D61: =SUM(D57:D60) -> 153759 | E61: =SUM(E57:E60) -> 156344 | F61: =SUM(F57:F60) -> 159006 | G61: =SUM(G57:G60) -> 161717
A63: NPL2 (Gifted & Energex Operated)
A64: Major Conventional | B64: # | C64: =C13+C30-C47 -> 45448 | D64: =D13+D30-D47 -> 42685 | E64: 37839 | F64: 32370 | G64: 26094
A65: Minor Conventional | B65: # | C65: =C14+C31-C48 -> 118752 | D65: 112442 | E65: 101073 | F65: 88067 | G65: 72714
A66: Major LED | B66: # | C66: =C15+C32-C49 -> 8171 | D66: 11779 | E66: 17514 | F66: 23896 | G66: 31133
A67: Minor LED | B67: # | C67: =C16+C33-C50 -> 18228 | D67: 26727 | E67: 40326 | F67: 55603 | G67: 73269
A68: Total | B68: # | C68: =SUM(C64:C67) -> 190599 | D68: =SUM(D64:D67) -> 193633 | E68: =SUM(E64:E67) -> 196752 | F68: =SUM(F64:F67) -> 199936 | G68: =SUM(G64:G67) -> 203210
A69: Total Closing Lights | B69: # | C69: =SUM(C61,C68) -> 341832 | D69: =SUM(D61,D68) -> 347392 | E69: =SUM(E61,E68) -> 353096 | F69: =SUM(F61,F68) -> 358942 | G69: =SUM(G61,G68) -> 364927
A72: Pricing Allocators
A73: Proportion of asset base related to refurbishment | B73: % | C73: 0.1
A74: Relativity Major to Minor
A75: Opex + tax | B75: # | C75: 1.5
A76: Asset charge | B76: # | C76: 1.8
A78: Price Smoothing Inputs
A79: Expected CPI | B79: % | C79: 0.0227399009
A80: Discount rate for smoothing | B80: % | C80: 0.04728406841 | D80: 0.04600262814 | E80: 0.04472118787 | F80: 0.0434397476 | G80: 0.04215830733
A81: X factor (years 2 to 5) | B81: % | C81: 0
A82: P0 Conventional | B82: % | C82: -0.04923350613
A83: Z factor LED | B83: % | C83: 0.2674206094
A85: % of PLAB associated with Poles, cabling and some residual brackets | B85: % | C85: 0.7
A87: 2019-20 Prices
A88: NPL1 (Energex Owned & Operated)
A89: Major | C89: 0.866
A90: Minor | C90: 0.398
A91: NPL2 (Gifted & Energex Operated)
A92: Major | C92: 0.301
A93: Minor | C93: 0.146

Sheet Public Lighting Pricing
A1: Public Lighting Price Calculations | B1: Units | C1: ='Input Data'!C1 -> 2020-21 | D1: ='Input Data'!D1 -> 2021-22 | E1: ='Input Data'!E1 -> 2022-23 | F1: ='Input Data'!F1 -> 2023-24 | G1: ='Input Data'!G1 -> 2024-25
A3: Building Block Revenue - Linked to PL PTRM
A5: Opex Charge
A6: O&M Conventional | B6: $M Nominal | C6: 25.23388703 | D6: 24.5330633 | E6: 22.82936307 | F6: 20.7244057 | G6: 18.1755729
A7: O&M LED | B7: $M Nominal | C7: 0.671386715 | D7: 1.361439174 | E7: 2.629517325 | F7: 4.247331741 | G7: 6.267332495
A8: Carry-over amounts Conventional | B8: $M Nominal | C8: 0 | D8: 0 | E8: 0 | F8: 0 | G8: 0
A9: Carry-over amounts LED | B9: $M Nominal | C9: 0 | D9: 0 | E9: 0 | F9: 0 | G9: 0
A10: Benchmark Tax liability Conventional | B10: $M Nominal
A11: Tax liability attributable to O&M Revenue | B11: $M Nominal | C11: 0 | D11: 0 | E11: 0 | F11: 0 | G11: 0
A12: Tax liability attributable to Capex Revenue | B12: $M Nominal | C12: 0 | D12: 0 | E12: 0 | F12: 0 | G12: 0
A13: Tax liability attributable to Gifted Assets | B13: $M Nominal | C13: 0 | D13: 0 | E13: 0 | F13: 0 | G13: 0
A14: Tax liability attributable to Contributed Assets | B14: $M Nominal | C14: 0 | D14: 0 | E14: 0 | F14: 0 | G14: 0
A15: Benchmark Tax liability LED | B15: $M Nominal
A16: Tax liability attributable to O&M Revenue | B16: $M Nominal | C16: 0 | D16: 0 | E16: 0 | F16: 0 | G16: 0
A17: Tax liability attributable to Capex Revenue | B17: $M Nominal | C17: 0 | D17: 0 | E17: 0 | F17: 0 | G17: 0
A18: Tax liability attributable to Gifted Assets | B18: $M Nominal | C18: 2.053577129 | D18: 1.815908582 | E18: 1.672821245 | F18: 1.544924605 | G18: 1.474142153
A19: Tax liability attributable to Contributed Assets | B19: $M Nominal | C19: 0 | D19: 0 | E19: 0 | F19: 0 | G19: 0
A20: Total Opex Charge Conventional | B20: $M Nominal | C20: =SUM(C6,C8,C11)+C6/(C6+C24+C25)*(C13+C14) -> 25.23388703 | D20: =SUM(D6,D8,D11)+D6/(D6+D24+D25)*(D13+D14) -> 24.5330633 | E20: =SUM(E6,E8,E11)+E6/(E6+E24+E25)*(E13+E14) -> 22.82936307 | F20: 20.7244057 | G20: 18.1755729
A21: Total Opex Charge LED | B21: $M Nominal | C21: =SUM(C7,C9,C16)+C7/(C7+C28+C29)*(C18+C19) -> 2.136669349 | D21: =SUM(D7,D9,D16)+D7/(D7+D28+D29)*(D18+D19) -> 2.363553577 | E21: 3.607823319 | F21: 5.191238255 | G21: 7.20264063
A23: Capex Charge Conventional | B23: NPL4 Switch | C23: 1 | D23: 1 | E23: 1 | F23: 1 | G23: 1
A24: Return on capital | B24: $M Nominal | C24: 5.888161139 | D24: 5.432730961 | E24: 4.974070268 | F24: 4.507582082 | G24: 4.040110851
A25: Return of capital | B25: $M Nominal | C25: 8.279503835 | D25: 8.772931709 | E25: 9.286969419 | F25: 9.818798747 | G25: 10.37362528
A26: Total Capex Charge Conventional | B26: $M Nominal | C26: =(SUM(C24,C25,C12)+(C24+25)/(C6+C24+25)*(C13+C14))*C23 -> 14.16766497 | D26: =(SUM(D24,D25,D12)+(D24+25)/(D6+D24+25)*(D13+D14))*D23 -> 14.20566267 | E26: 14.26103969 | F26: 14.32638083 | G26: 14.41373613
A27: Capex Charge LED
A28: Return on capital | B28: $M Nominal | C28: 0.1120282453 | D28: 0.6198537524 | E28: 1.052474626 | F28: 1.503367919 | G28: 1.963271907
A29: Return of capital | B29: $M Nominal | C29: 0.1575259686 | D29: 0.4857398535 | E29: 0.81426226 | F29: 1.20105585 | G29: 1.647358453
A30: Total Capex Charge LED | B30: $M Nominal | C30: =(SUM(C28,C29,C17)+(C28+C29)/(C7+C28+C29)*(C18+C19))*C23 -> 0.8578487093 | D30: =(SUM(D28,D29,D17)+(D28+D29)/(D7+D28+D29)*(D18+D19))*D23 -> 1.919387785 | E30: 2.561252137 | F30: 3.305441859 | G30: 4.149464377
A32: ARR for Conventional | B32: $M Nominal | C32: =SUM(C20,C26) -> 39.40155201 | D32: =SUM(D20,D26) -> 38.73872598 | E32: =SUM(E20,E26) -> 37.09040276 | F32: =SUM(F20,F26) -> 35.05078653 | G32: =SUM(G20,G26) -> 32.58930903
A33: ARR for LED | B33: $M Nominal | C33: =SUM(C21,C30) -> 2.994518058 | D33: =SUM(D21,D30) -> 4.282941362 | E33: =SUM(E21,E30) -> 6.169075456 | F33: =SUM(F21,F30) -> 8.496680114 | G33: =SUM(G21,G30) -> 11.35210501
A34: ARR for Total | B34: $M Nominal | C34: =SUM(C32:C33) -> 42.39607007 | D34: =SUM(D32:D33) -> 43.02166734 | E34: 43.25947822 | F34: 43.54746665 | G34: 43.94141404
A36: Opex and Capex Charge Components
A37: Opex Charge for Conventional Lights | B37: $M Nominal | C37: =C20 -> 25.23388703 | D37: 24.5330633 | E37: 22.82936307 | F37: 20.7244057 | G37: 18.1755729
A38: Opex Charge for LED | B38: $M Nominal | C38: 2.136669349 | D38: 2.363553577 | E38: 3.607823319 | F38: 5.191238255 | G38: 7.20264063
A39: Capex Charge for Conventional Lights | B39: $M Nominal | C39: =C26 -> 14.16766497 | D39: =D26 -> 14.20566267 | E39: 14.26103969 | F39: 14.32638083 | G39: 14.41373613
A40: Capex Charge for LED | B40: $M Nominal | C40: =C30 -> 0.8578487093 | D40: =D30 -> 1.919387785 | E40: 2.561252137 | F40: 3.305441859 | G40: 4.149464377
A42: Public Lights Population
A44: Average No of Lights by Tariff
A45: NPL1 (Energex Owned & Operated)
A46: Major Conventional | B46: # | C46: =SUM('Input Data'!C6,'Input Data'!C57)/2 -> 38785.5 | D46: =SUM('Input Data'!D6,'Input Data'!D57)/2 -> 37001 | E46: =SUM('Input Data'!E6,'Input Data'!E57)/2 -> 33592 | F46: =SUM('Input Data'!F6,'Input Data'!F57)/2 -> 29669 | G46: =SUM('Input Data'!G6,'Input Data'!G57)/2 -> 25153
A47: Minor Conventional | B47: # | C47: =SUM('Input Data'!C7,'Input Data'!C58)/2 -> 99467.5 | D47: =SUM('Input Data'!D7,'Input Data'!D58)/2 -> 95207 | E47: =SUM('Input Data'!E7,'Input Data'!E58)/2 -> 86952.5 | F47: =SUM('Input Data'!F7,'Input Data'!F58)/2 -> 77383.5 | G47: =SUM('Input Data'!G7,'Input Data'!G58)/2 -> 66098
A48: Major LED | B48: # | C48: =SUM('Input Data'!C8,'Input Data'!C59)/2 -> 3660.5 | D48: =SUM('Input Data'!D8,'Input Data'!D59)/2 -> 6145 | E48: =SUM('Input Data'!E8,'Input Data'!E59)/2 -> 10285 | F48: =SUM('Input Data'!F8,'Input Data'!F59)/2 -> 14970 | G48: =SUM('Input Data'!G8,'Input Data'!G59)/2 -> 20275
A49: Minor LED | B49: # | C49: =SUM('Input Data'!C9,'Input Data'!C60)/2 -> 9169.5 | D49: =SUM('Input Data'!D9,'Input Data'!D60)/2 -> 15211 | E49: =SUM('Input Data'!E9,'Input Data'!E60)/2 -> 25274.5 | F49: =SUM('Input Data'!F9,'Input Data'!F60)/2 -> 36693.5 | G49: =SUM('Input Data'!G9,'Input Data'!G60)/2 -> 49856
A50: Total | B50: # | C50: =SUM(C46:C49) -> 151083 | D50: =SUM(D46:D49) -> 153564 | E50: =SUM(E46:E49) -> 156104 | F50: =SUM(F46:F49) -> 158716 | G50: =SUM(G46:G49) -> 161382
A52: NPL2 (Gifted & Energex Operated)
A53: Major Conventional | B53: # | C53: =SUM('Input Data'!C13,'Input Data'!C64)/2 -> 47181 | D53: =SUM('Input Data'!D13,'Input Data'!D64)/2 -> 44801 | E53: =SUM('Input Data'!E13,'Input Data'!E64)/2 -> 40396 | F53: =SUM('Input Data'!F13,'Input Data'!F64)/2 -> 35347 | G53: =SUM('Input Data'!G13,'Input Data'!G64)/2 -> 29551
A54: Minor Conventional | B54: # | C54: =SUM('Input Data'!C14,'Input Data'!C65)/2 -> 122234 | D54: =SUM('Input Data'!D14,'Input Data'!D65)/2 -> 116789 | E54: =SUM('Input Data'!E14,'Input Data'!E65)/2 -> 106418 | F54: =SUM('Input Data'!F14,'Input Data'!F65)/2 -> 94367 | G54: =SUM('Input Data'!G14,'Input Data'!G65)/2 -> 80201.5
A55: Major LED | B55: # | C55: =SUM('Input Data'!C15,'Input Data'!C66)/2 -> 5708 | D55: =SUM('Input Data'!D15,'Input Data'!D66)/2 -> 8928 | E55: =SUM('Input Data'!E15,'Input Data'!E66)/2 -> 14212 | F55: =SUM('Input Data'!F15,'Input Data'!F66)/2 -> 20169 | G55: =SUM('Input Data'!G15,'Input Data'!G66)/2 -> 26916
A56: Minor LED | B56: # | C56: =SUM('Input Data'!C16,'Input Data'!C67)/2 -> 12943.5 | D56: =SUM('Input Data'!D16,'Input Data'!D67)/2 -> 20562.5 | E56: =SUM('Input Data'!E16,'Input Data'!E67)/2 -> 33148.5 | F56: =SUM('Input Data'!F16,'Input Data'!F67)/2 -> 47455.5 | G56: =SUM('Input Data'!G16,'Input Data'!G67)/2 -> 63919
A57: Total | B57: # | C57: =SUM(C53:C56) -> 188066.5 | D57: =SUM(D53:D56) -> 191080.5 | E57: =SUM(E53:E56) -> 194174.5 | F57: =SUM(F53:F56) -> 197338.5 | G57: =SUM(G53:G56) -> 200587.5
A58: Grand total | B58: # | C58: =SUM(C50,C57) -> 339149.5 | D58: =SUM(D50,D57) -> 344644.5 | E58: 350278.5 | F58: 356054.5 | G58: 361969.5
A60: Average No of Lights by Type
A61: Major Conventional | B61: # | C61: =SUM(C46,C53) -> 85966.5 | D61: =SUM(D46,D53) -> 81802 | E61: 73988 | F61: 65016 | G61: 54704
A62: Minor Conventional | B62: # | C62: =SUM(C47,C54) -> 221701.5 | D62: 211996 | E62: 193370.5 | F62: 171750.5 | G62: 146299.5
A63: Major LED | B63: # | C63: =SUM(C48,C55) -> 9368.5 | D63: 15073 | E63: 24497 | F63: 35139 | G63: 47191
A64: Minor LED | B64: # | C64: =SUM(C49,C56) -> 22113 | D64: 35773.5 | E64: 58423 | F64: 84149 | G64: 113775
A65: Total | B65: # | C65: =SUM(C61:C64) -> 339149.5 | D65: =SUM(D61:D64) -> 344644.5 | E65: =SUM(E61:E64) -> 350278.5 | F65: =SUM(F61:F64) -> 356054.5 | G65: =SUM(G61:G64) -> 361969.5
A67: Price Components
A69: Opex Charge
A70: NPL1 (Energex Owned & Operated)
A71: Major Conventional | B71: $/day/light Nominal | C71: =C37*10^6/(C61+C62/'Input Data'!$C$75) -> 107.9443765 | D71: =D37*10^6/(D61+D62/'Input Data'!$C$75) -> 109.9483266 | E71: =E37*10^6/(E61+E62/'Input Data'!$C$75) -> 112.5144187 | F71: =F37*10^6/(F61+F62/'Input Data'!$C$75) -> 115.4457944 | G71: =G37*10^6/(G61+G62/'Input Data'!$C$75) -> 119.3899834
A72: Minor Conventional | B72: $/day/light Nominal | C72: =C71/'Input Data'!$C$75 -> 71.96291767 | D72: =D71/'Input Data'!$C$75 -> 73.29888438 | E72: =E71/'Input Data'!$C$75 -> 75.00961245 | F72: =F71/'Input Data'!$C$75 -> 76.96386292 | G72: =G71/'Input Data'!$C$75 -> 79.59332227
A73: Major LED | B73: $/day/light Nominal | C73: =C38*10^6/(C63+C64/'Input Data'!$C$75) -> 88.6198689 | D73: =D38*10^6/(D63+D64/'Input Data'!$C$75) -> 60.72538864 | E73: =E38*10^6/(E63+E64/'Input Data'!$C$75) -> 56.86477121 | F73: =F38*10^6/(F63+F64/'Input Data'!$C$75) -> 56.89755682 | G73: =G38*10^6/(G63+G64/'Input Data'!$C$75) -> 58.53854106
A74: Minor LED | B74: $/day/light Nominal | C74: =C73/'Input Data'!$C$75 -> 59.0799126 | D74: =D73/'Input Data'!$C$75 -> 40.48359243 | E74: =E73/'Input Data'!$C$75 -> 37.90984748 | F74: =F73/'Input Data'!$C$75 -> 37.93170455 | G74: =G73/'Input Data'!$C$75 -> 39.02569404
A76: NPL2 (Gifted & Energex Operated)
A77: Major Conventional | B77: $/day/light Nominal | C77: =C71 -> 107.9443765 | D77: =D71 -> 109.9483266 | E77: 112.5144187 | F77: 115.4457944 | G77: 119.3899834 | I77: Opex NPL2 is set equal to Opex NPL1
A78: Minor Conventional | B78: $/day/light Nominal | C78: =C72 -> 71.96291767 | D78: 73.29888438 | E78: 75.00961245 | F78: 76.96386292 | G78: 79.59332227 | I78: Opex NPL2 is set equal to Opex NPL1
A79: Major LED | B79: $/day/light Nominal | C79: =C73 -> 88.6198689 | D79: 60.72538864 | E79: 56.86477121 | F79: 56.89755682 | G79: 58.53854106 | I79: Opex NPL2 is set equal to Opex NPL1
A80: Minor LED | B80: $/day/light Nominal | C80: =C74 -> 59.0799126 | D80: 40.48359243 | E80: 37.90984748 | F80: 37.93170455 | G80: 39.02569404 | I80: Opex NPL2 is set equal to Opex NPL1
A82: Capex Charge
A83: NPL1 (Energex Owned & Operated)
A84: Major Conventional | B84: $/day/light Nominal | C84: =C39*10^6/(C46+C47/'Input Data'!$C$76)*(1-'Input Data'!$C$73) -> 135.582629 | D84: =D39*10^6/(D46+D47/'Input Data'!$C$76)*(1-'Input Data'!$C$73) -> 142.2244867 | E84: =E39*10^6/(E46+E47/'Input Data'!$C$76)*(1-'Input Data'!$C$73) -> 156.7167417 | F84: =F39*10^6/(F46+F47/'Input Data'!$C$76)*(1-'Input Data'!$C$73) -> 177.4535139 | G84: =G39*10^6/(G46+G47/'Input Data'!$C$76)*(1-'Input Data'!$C$73) -> 209.6573556
A85: Minor Conventional | B85: $/day/light Nominal | C85: =C84/'Input Data'!$C$76 -> 75.32368279 | D85: =D84/'Input Data'!$C$76 -> 79.01360373 | E85: =E84/'Input Data'!$C$76 -> 87.06485648 | F85: =F84/'Input Data'!$C$76 -> 98.58528552 | G85: =G84/'Input Data'!$C$76 -> 116.4763087
A86: Major LED | B86: $/day/light Nominal | C86: =C40*10^6/(C48+C49/'Input Data'!$C$76)*(1-'Input Data'!$C$73) -> 88.18883319 | D86: =D40*10^6/(D48+D49/'Input Data'!$C$76)*(1-'Input Data'!$C$73) -> 118.3544539 | E86: =E40*10^6/(E48+E49/'Input Data'!$C$76)*(1-'Input Data'!$C$73) -> 94.75828631 | F86: =F40*10^6/(F48+F49/'Input Data'!$C$76)*(1-'Input Data'!$C$73) -> 84.14295856 | G86: =G40*10^6/(G48+G49/'Input Data'!$C$76)*(1-'Input Data'!$C$73) -> 77.84660619
A87: Minor LED | B87: $/day/light Nominal | C87: =C86/'Input Data'!$C$76 -> 48.99379622 | D87: =D86/'Input Data'!$C$76 -> 65.75247438 | E87: =E86/'Input Data'!$C$76 -> 52.6434924 | F87: =F86/'Input Data'!$C$76 -> 46.74608809 | G87: =G86/'Input Data'!$C$76 -> 43.24811455
A89: NPL2 (Gifted & Energex Operated)
A90: Major Conventional | B90: $/day/light Nominal | C90: 0 | D90: 0 | E90: 0 | F90: 0 | G90: 0 | I90: Capex is not allocated to NPL2
A91: Minor Conventional | B91: $/day/light Nominal | C91: 0 | D91: 0 | E91: 0 | F91: 0 | G91: 0
A92: Major LED | B92: $/day/light Nominal | C92: 0 | D92: 0 | E92: 0 | F92: 0 | G92: 0
A93: Minor LED | B93: $/day/light Nominal | C93: 0 | D93: 0 | E93: 0 | F93: 0 | G93: 0
A95: Refurbishment Charge
A96: NPL1 (Energex Owned & Operated)
A97: Major Conventional | B97: $/day/light Nominal | C97: =C39*10^6/(C61+C62/'Input Data'!$C$76)*'Input Data'!$C$73 -> 6.774443646 | D97: =D39*10^6/(D61+D62/'Input Data'!$C$76)*'Input Data'!$C$73 -> 7.11786585 | E97: =E39*10^6/(E61+E62/'Input Data'!$C$76)*'Input Data'!$C$73 -> 7.860957865 | F97: =F39*10^6/(F61+F62/'Input Data'!$C$76)*'Input Data'!$C$73 -> 8.929824781 | G97: =G39*10^6/(G61+G62/'Input Data'!$C$76)*'Input Data'!$C$73 -> 10.59977727
A98: Minor Conventional | B98: $/day/light Nominal | C98: =C97/'Input Data'!$C$76 -> 3.763579803 | D98: =D97/'Input Data'!$C$76 -> 3.954369917 | E98: =E97/'Input Data'!$C$76 -> 4.367198814 | F98: =F97/'Input Data'!$C$76 -> 4.961013767 | G98: =G97/'Input Data'!$C$76 -> 5.88876515
A99: Major LED | B99: $/day/light Nominal | C99: =C40*10^6/(C63+C64/'Input Data'!$C$76)*'Input Data'!$C$73 -> 3.961709235 | D99: =D40*10^6/(D63+D64/'Input Data'!$C$76)*'Input Data'!$C$73 -> 5.492255792 | E99: =E40*10^6/(E63+E64/'Input Data'!$C$76)*'Input Data'!$C$73 -> 4.497036457 | F99: =F40*10^6/(F63+F64/'Input Data'!$C$76)*'Input Data'!$C$73 -> 4.036518072 | G99: =G40*10^6/(G63+G64/'Input Data'!$C$76)*'Input Data'!$C$73 -> 3.758595502
A100: Minor LED | B100: $/day/light Nominal | C100: =C99/'Input Data'!$C$76 -> 2.200949575 | D100: =D99/'Input Data'!$C$76 -> 3.051253218 | E100: =E99/'Input Data'!$C$76 -> 2.498353587 | F100: =F99/'Input Data'!$C$76 -> 2.24251004 | G100: =G99/'Input Data'!$C$76 -> 2.088108612
A102: NPL2 (Gifted & Energex Operated)
A103: Major Conventional | B103: $/day/light Nominal | C103: =C97 -> 6.774443646 | D103: =D97 -> 7.11786585 | E103: 7.860957865 | F103: 8.929824781 | G103: 10.59977727
A104: Minor Conventional | B104: $/day/light Nominal | C104: =C98 -> 3.763579803 | D104: 3.954369917 | E104: 4.367198814 | F104: 4.961013767 | G104: 5.88876515
A105: Major LED | B105: $/day/light Nominal | C105: =C99 -> 3.961709235 | D105: 5.492255792 | E105: 4.497036457 | F105: 4.036518072 | G105: 3.758595502
A106: Minor LED | B106: $/day/light Nominal | C106: =C100 -> 2.200949575 | D106: 3.051253218 | E106: 2.498353587 | F106: 2.24251004 | G106: 2.088108612
B108: 2020-06-30 | C108: =EOMONTH(B108,12) -> 2021-06-30 | D108: =EOMONTH(C108,12) -> 2022-06-30 | E108: 2023-06-30 | F108: 2024-06-30 | G108: 2025-06-30
A109: Pricing Days in Year | B109: # | C109: =C108-B108 -> 365 | D109: =D108-C108 -> 365 | E109: 365 | F109: 366 | G109: 365
A112: Unsmoothed Prices
A114: NPL1 (Energex Owned & Operated)
A115: Major Conventional | B115: $/day/light Nominal | C115: =SUM(C71,C84,C97)/C$109 -> 0.685757395 | D115: =SUM(D71,D84,D97)/D$109 -> 0.7103854223 | E115: 0.7591564882 | F115: 0.8246697625 | G115: 0.9305400446
A116: Minor Conventional | B116: $/day/light Nominal | C116: =SUM(C72,C85,C98)/C$109 -> 0.4138361103 | D116: =SUM(D72,D85,D98)/D$109 -> 0.4281283782 | E116: 0.4560045691 | F116: 0.4931971645 | G116: 0.5533106742
A117: Major LED | B117: $/day/light Nominal | C117: =SUM(C73,C86,C99)/C$109 -> 0.4952614009 | D117: 0.5056769817 | E117: 0.4277262849 | F117: 0.3963853373 | G117: 0.3839554596
A118: Minor LED | B118: $/day/light Nominal | C118: =SUM(C74,C87,C100)/C$109 -> 0.3021223518 | D118: 0.2994173151 | E118: 0.2549361465 | F118: 0.2374871658 | G118: 0.2311285403
A120: NPL2 (Gifted & Energex Operated)
A121: Major Conventional | B121: $/day/light Nominal | C121: =SUM(C77,C90,C103)/C$109 -> 0.3142981374 | D121: =SUM(D77,D90,D103)/D$109 -> 0.3207292943 | E121: 0.3297955522 | F121: 0.3398240961 | G121: 0.3561363306
A122: Minor Conventional | B122: $/day/light Nominal | C122: =SUM(C78,C91,C104)/C$109 -> 0.2074698561 | D122: 0.2116527515 | E122: 0.2174707158 | F122: 0.2238384609 | G122: 0.2341974998
A123: Major LED | B123: $/day/light Nominal | C123: =SUM(C79,C92,C105)/C$109 -> 0.2536481593 | D123: 0.1814182039 | E123: 0.1681145416 | F123: 0.1664865434 | G123: 0.1706770865
A124: Minor LED | B124: $/day/light Nominal | C124: =SUM(C80,C93,C106)/C$109 -> 0.1678927731 | D124: 0.1192735497 | E124: 0.1107074002 | F124: 0.1097656136 | G124: 0.1126405552
A126: Smoothed Prices
A128: NPL1 (Energex Owned & Operated)
A129: Major Conventional | B129: $/day/light Nominal | C129: ='Input Data'!C89*(1+'Input Data'!$C$79)*(1-'Input Data'!$C$82) -> 0.9292985138 | D129: =C129*(1-'Input Data'!$C$81)*(1+'Input Data'!$C$79) -> 0.9504306699 | E129: =D129*(1-'Input Data'!$C$81)*(1+'Input Data'!$C$79) -> 0.9720433692 | F129: =E129*(1-'Input Data'!$C$81)*(1+'Input Data'!$C$79) -> 0.9941475391 | G129: =F129*(1-'Input Data'!$C$81)*(1+'Input Data'!$C$79) -> 1.016754356
A130: Minor Conventional | B130: $/day/light Nominal | C130: ='Input Data'!C90*(1+'Input Data'!$C$79)*(1-'Input Data'!$C$82) -> 0.4270910029 | D130: =C130*(1-'Input Data'!$C$81)*(1+'Input Data'!$C$79) -> 0.43680301 | E130: =D130*(1-'Input Data'!$C$81)*(1+'Input Data'!$C$79) -> 0.4467358671 | F130: =E130*(1-'Input Data'!$C$81)*(1+'Input Data'!$C$79) -> 0.4568945965 | G130: =F130*(1-'Input Data'!$C$81)*(1+'Input Data'!$C$79) -> 0.4672843343
A131: Major LED | B131: $/day/light Nominal | C131: =C117*(1-'Input Data'!$C$83) -> 0.3628182953 | D131: =C131*(1-'Input Data'!$C$81)*(1+'Input Data'!$C$79) -> 0.3710687473 | E131: =D131*(1-'Input Data'!$C$81)*(1+'Input Data'!$C$79) -> 0.3795068139 | F131: =E131*(1-'Input Data'!$C$81)*(1+'Input Data'!$C$79) -> 0.3881367612 | G131: =F131*(1-'Input Data'!$C$81)*(1+'Input Data'!$C$79) -> 0.3969629527
A132: Minor LED | B132: $/day/light Nominal | C132: =C118*(1-'Input Data'!$C$83) -> 0.2213286083 | D132: =C132*(1-'Input Data'!$C$81)*(1+'Input Data'!$C$79) -> 0.226361599 | E132: =D132*(1-'Input Data'!$C$81)*(1+'Input Data'!$C$79) -> 0.2315090393 | F132: =E132*(1-'Input Data'!$C$81)*(1+'Input Data'!$C$79) -> 0.2367735319 | G132: =F132*(1-'Input Data'!$C$81)*(1+'Input Data'!$C$79) -> 0.2421577385
A134: NPL2 (Gifted & Energex Operated)
A135: Major Conventional | B135: $/day/light Nominal | C135: ='Input Data'!C92*(1+'Input Data'!$C$79)*(1-'Input Data'!$C$82) -> 0.3230009846 | D135: =C135*(1-'Input Data'!$C$81)*(1+'Input Data'!$C$79) -> 0.330345995 | E135: =D135*(1-'Input Data'!$C$81)*(1+'Input Data'!$C$79) -> 0.3378580302 | F135: =E135*(1-'Input Data'!$C$81)*(1+'Input Data'!$C$79) -> 0.3455408883 | G135: =F135*(1-'Input Data'!$C$81)*(1+'Input Data'!$C$79) -> 0.3533984538
A136: Minor Conventional | B136: $/day/light Nominal | C136: ='Input Data'!C93*(1+'Input Data'!$C$79)*(1-'Input Data'!$C$82) -> 0.1566715739 | D136: =C136*(1-'Input Data'!$C$81)*(1+'Input Data'!$C$79) -> 0.16023427 | E136: =D136*(1-'Input Data'!$C$81)*(1+'Input Data'!$C$79) -> 0.1638779814 | F136: =E136*(1-'Input Data'!$C$81)*(1+'Input Data'!$C$79) -> 0.1676045505 | G136: =F136*(1-'Input Data'!$C$81)*(1+'Input Data'!$C$79) -> 0.1714158613
A137: Major LED | B137: $/day/light Nominal | C137: =C123*(1-'Input Data'!$C$83) -> 0.1858174139 | D137: =C137*(1-'Input Data'!$C$81)*(1+'Input Data'!$C$79) -> 0.1900428835 | E137: =D137*(1-'Input Data'!$C$81)*(1+'Input Data'!$C$79) -> 0.1943644399 | F137: =E137*(1-'Input Data'!$C$81)*(1+'Input Data'!$C$79) -> 0.198784268 | G137: =F137*(1-'Input Data'!$C$81)*(1+'Input Data'!$C$79) -> 0.2033046025
A138: Minor LED | B138: $/day/light Nominal | C138: =C124*(1-'Input Data'!$C$83) -> 0.1229947854 | D138: =C138*(1-'Input Data'!$C$81)*(1+'Input Data'!$C$79) -> 0.1257916746 | E138: =D138*(1-'Input Data'!$C$81)*(1+'Input Data'!$C$79) -> 0.1286521648 | F138: =E138*(1-'Input Data'!$C$81)*(1+'Input Data'!$C$79) -> 0.1315777023 | G138: =F138*(1-'Input Data'!$C$81)*(1+'Input Data'!$C$79) -> 0.1345697662
A140: Recovered Revenue
A142: Cumulative Discount Rate | C142: =(1+'Input Data'!C80) -> 1.047284068 | D142: =C142*(1+'Input Data'!D80) -> 1.095461888 | E142: =D142*(1+'Input Data'!E80) -> 1.144452245 | F142: =E142*(1+'Input Data'!F80) -> 1.194166961 | G142: =F142*(1+'Input Data'!G80) -> 1.244511019
A144: Recovered revenue Conventional | B144: $M Nominal | C144: =(SUMPRODUCT(C129:C130,C46:C47)+SUMPRODUCT(C135:C136,C53:C54))*C109/10^6 -> 41.21400583 | D144: =(SUMPRODUCT(D129:D130,D46:D47)+SUMPRODUCT(D135:D136,D53:D54))*D109/10^6 -> 40.24746247 | E144: =(SUMPRODUCT(E129:E130,E46:E47)+SUMPRODUCT(E135:E136,E53:E54))*E109/10^6 -> 37.44365689 | F144: =(SUMPRODUCT(F129:F130,F46:F47)+SUMPRODUCT(F135:F136,F53:F54))*F109/10^6 -> 33.99467978 | G144: =(SUMPRODUCT(G129:G130,G46:G47)+SUMPRODUCT(G135:G136,G53:G54))*G109/10^6 -> 29.43800524
A145: NPV of recovered revenue Conventional | B145: $M Nominal | C145: =SUM(C144/C$142,D144/D$142,E144/E$142,F144/F$142,G144/G$142) -> 160.9324865
A146: NPV of revenue requirement Conventional | B146: $M Nominal | C146: =SUM(C32/C$142,D32/D$142,E32/E$142,F32/F$142,G32/G$142) -> 160.9324865
A147: Difference Conventional | B147: $M Nominal | C147: =C145-C146 -> 0
A149: Recovered revenue LED | B149: $M Nominal | C149: =(SUMPRODUCT(C131:C132,C48:C49)+SUMPRODUCT(C137:C138,C55:C56))*C109/10^6 -> 2.193722214 | D149: =(SUMPRODUCT(D131:D132,D48:D49)+SUMPRODUCT(D137:D138,D55:D56))*D109/10^6 -> 3.652444736 | E149: =(SUMPRODUCT(E131:E132,E48:E49)+SUMPRODUCT(E137:E138,E55:E56))*E109/10^6 -> 6.125224322 | F149: =(SUMPRODUCT(F131:F132,F48:F49)+SUMPRODUCT(F137:F138,F55:F56))*F109/10^6 -> 9.059167021 | G149: =(SUMPRODUCT(G131:G132,G48:G49)+SUMPRODUCT(G137:G138,G55:G56))*G109/10^6 -> 12.48123035
A150: NPV of recovered revenue LED | B150: $M Nominal | C150: =SUM(C149/C$142,D149/D$142,E149/E$142,F149/F$142,G149/G$142) -> 28.39614303
A151: NPV of revenue requirement LED | B151: $M Nominal | C151: =SUM(C33/C$142,D33/D$142,E33/E$142,F33/F$142,G33/G$142) -> 28.39634002
A152: Difference LED | B152: $M Nominal | C152: =C150-C151 -> -0.0001969968011
A155: Check Unsmoothed Prices
A156: Unsmoothed Prices X Volumes - Conventional | C156: =(SUMPRODUCT(C115:C116,C46:C47)+SUMPRODUCT(C121:C122,C53:C54))*C109/10^6 -> 39.40155201 | D156: =(SUMPRODUCT(D115:D116,D46:D47)+SUMPRODUCT(D121:D122,D53:D54))*D109/10^6 -> 38.73872598 | E156: =(SUMPRODUCT(E115:E116,E46:E47)+SUMPRODUCT(E121:E122,E53:E54))*E109/10^6 -> 37.09040276 | F156: =(SUMPRODUCT(F115:F116,F46:F47)+SUMPRODUCT(F121:F122,F53:F54))*F109/10^6 -> 35.05078653 | G156: =(SUMPRODUCT(G115:G116,G46:G47)+SUMPRODUCT(G121:G122,G53:G54))*G109/10^6 -> 32.58930903
A157: Revenue requirement - Conventional | C157: =C32 -> 39.40155201 | D157: =D32 -> 38.73872598 | E157: =E32 -> 37.09040276 | F157: =F32 -> 35.05078653 | G157: =G32 -> 32.58930903
A158: Check | C158: =C156-C157 -> 0 | D158: =D156-D157 -> 0 | E158: 0 | F158: 0 | G158: 0
A159: Unsmoothed Prices X Volumes - LED | C159: =(SUMPRODUCT(C117:C118,C48:C49)+SUMPRODUCT(C123:C124,C55:C56))*C109/10^6 -> 2.994518058 | D159: =(SUMPRODUCT(D117:D118,D48:D49)+SUMPRODUCT(D123:D124,D55:D56))*D109/10^6 -> 4.282941362 | E159: =(SUMPRODUCT(E117:E118,E48:E49)+SUMPRODUCT(E123:E124,E55:E56))*E109/10^6 -> 6.169075456 | F159: =(SUMPRODUCT(F117:F118,F48:F49)+SUMPRODUCT(F123:F124,F55:F56))*F109/10^6 -> 8.496680114 | G159: =(SUMPRODUCT(G117:G118,G48:G49)+SUMPRODUCT(G123:G124,G55:G56))*G109/10^6 -> 11.35210501
A160: Revenue requirement - LED | C160: =C33 -> 2.994518058 | D160: =D33 -> 4.282941362 | E160: =E33 -> 6.169075456 | F160: =F33 -> 8.496680114 | G160: =G33 -> 11.35210501
A161: Check | C161: =C159-C160 -> 0 | D161: =D159-D160 -> 0 | E161: =E159-E160 -> 0 | F161: =F159-F160 -> 0 | G161: =G159-G160 -> 0

Sheet Output Tables
A1: Public Lighting Prices ($ Nominal) | B1: 2020-21 | D1: 2021-22 | F1: 2022-23 | H1: 2023-24 | J1: 2024-25 | M1: LED Vs CON Prices | O1: 2019-20 | P1: =B1 -> 2020-21 | S1: Price Movement | W1: 2020-21 Annual Prices
B2: Conventional | C2: LED | D2: Conventional | E2: LED | F2: Conventional | G2: LED | H2: Conventional | I2: LED | J2: Conventional | K2: LED | O2: All Lights | P2: CON | Q2: LED | R2: Average | S2: =P2 -> CON | T2: =Q2 -> LED | U2: Average | W2: =B2 -> Conventional | X2: =C2 -> LED
A3: NPL1 (Energex Owned & Operated)
A4: Major | B4: =ROUND('Public Lighting Pricing'!C129,5) -> 0.9293 | C4: =ROUND('Public Lighting Pricing'!C131,5) -> 0.36282 | D4: =ROUND('Public Lighting Pricing'!D129,5) -> 0.95043 | E4: =ROUND('Public Lighting Pricing'!D131,5) -> 0.37107 | F4: =ROUND('Public Lighting Pricing'!E129,5) -> 0.97204 | G4: =ROUND('Public Lighting Pricing'!E131,5) -> 0.37951 | H4: =ROUND('Public Lighting Pricing'!F129,5) -> 0.99415 | I4: =ROUND('Public Lighting Pricing'!F131,5) -> 0.38814 | J4: =ROUND('Public Lighting Pricing'!G129,5) -> 1.01675 | K4: =ROUND('Public Lighting Pricing'!G131,5) -> 0.39696 | M4: =C4/B4 -> 0.390422899 | O4: ='Input Data'!C89 -> 0.866 | P4: =B4 -> 0.9293 | Q4: =C4 -> 0.36282 | R4: =(B4*'Public Lighting Pricing'!C$46+C4*'Public Lighting Pricing'!C$48)/SUM('Public Lighting Pricing'!C$46,'Public Lighting Pricing'!C$48) -> 0.8804473392 | S4: =P4/$O4-1 -> 0.07309468822 | T4: =Q4/$O4-1 -> -0.581039261 | U4: 0.01668283973 | W4: =B4*'Public Lighting Pricing'!$C$109 -> 339.1945 | X4: =C4*'Public Lighting Pricing'!$C$109 -> 132.4293
A5: Minor | B5: =ROUND('Public Lighting Pricing'!C130,5) -> 0.42709 | C5: =ROUND('Public Lighting Pricing'!C132,5) -> 0.22133 | D5: =ROUND('Public Lighting Pricing'!D130,5) -> 0.4368 | E5: =ROUND('Public Lighting Pricing'!D132,5) -> 0.22636 | F5: =ROUND('Public Lighting Pricing'!E130,5) -> 0.44674 | G5: =ROUND('Public Lighting Pricing'!E132,5) -> 0.23151 | H5: =ROUND('Public Lighting Pricing'!F130,5) -> 0.45689 | I5: =ROUND('Public Lighting Pricing'!F132,5) -> 0.23677 | J5: =ROUND('Public Lighting Pricing'!G130,5) -> 0.46728 | K5: =ROUND('Public Lighting Pricing'!G132,5) -> 0.24216 | M5: =C5/B5 -> 0.5182280081 | O5: ='Input Data'!C90 -> 0.398 | P5: =B5 -> 0.42709 | Q5: =C5 -> 0.22133 | R5: =(B5*'Public Lighting Pricing'!C$47+C5*'Public Lighting Pricing'!C$49)/SUM('Public Lighting Pricing'!C$47,'Public Lighting Pricing'!C$49) -> 0.4097228385 | S5: =P5/$O5-1 -> 0.07309045226 | T5: =Q5/$O5-1 -> -0.4438944724 | U5: =R5/$O5-1 -> 0.02945436818 | W5: =B5*'Public Lighting Pricing'!$C$109 -> 155.88785 | X5: =C5*'Public Lighting Pricing'!$C$109 -> 80.78545
A6: NPL2 (Gifted & Energex Operated)
A7: Major | B7: =ROUND('Public Lighting Pricing'!C135,5) -> 0.323 | C7: =ROUND('Public Lighting Pricing'!C137,5) -> 0.18582 | D7: =ROUND('Public Lighting Pricing'!D135,5) -> 0.33035 | E7: =ROUND('Public Lighting Pricing'!D137,5) -> 0.19004 | F7: =ROUND('Public Lighting Pricing'!E135,5) -> 0.33786 | G7: =ROUND('Public Lighting Pricing'!E137,5) -> 0.19436 | H7: =ROUND('Public Lighting Pricing'!F135,5) -> 0.34554 | I7: =ROUND('Public Lighting Pricing'!F137,5) -> 0.19878 | J7: =ROUND('Public Lighting Pricing'!G135,5) -> 0.3534 | K7: =ROUND('Public Lighting Pricing'!G137,5) -> 0.2033 | M7: =C7/B7 -> 0.5752941176 | O7: ='Input Data'!C92 -> 0.301 | P7: =B7 -> 0.323 | Q7: =C7 -> 0.18582 | R7: =(B7*'Public Lighting Pricing'!C$53+C7*'Public Lighting Pricing'!C$55)/SUM('Public Lighting Pricing'!C$53,'Public Lighting Pricing'!C$55) -> 0.3081949661 | S7: =P7/$O7-1 -> 0.073089701 | T7: =Q7/$O7-1 -> -0.3826578073 | U7: =R7/$O7-1 -> 0.02390354173 | W7: =B7*'Public Lighting Pricing'!$C$109 -> 117.895 | X7: =C7*'Public Lighting Pricing'!$C$109 -> 67.8243
A8: Minor | B8: =ROUND('Public Lighting Pricing'!C136,5) -> 0.15667 | C8: =ROUND('Public Lighting Pricing'!C138,5) -> 0.12299 | D8: =ROUND('Public Lighting Pricing'!D136,5) -> 0.16023 | E8: =ROUND('Public Lighting Pricing'!D138,5) -> 0.12579 | F8: =ROUND('Public Lighting Pricing'!E136,5) -> 0.16388 | G8: =ROUND('Public Lighting Pricing'!E138,5) -> 0.12865 | H8: =ROUND('Public Lighting Pricing'!F136,5) -> 0.1676 | I8: =ROUND('Public Lighting Pricing'!F138,5) -> 0.13158 | J8: =ROUND('Public Lighting Pricing'!G136,5) -> 0.17142 | K8: =ROUND('Public Lighting Pricing'!G138,5) -> 0.13457 | M8: =C8/B8 -> 0.7850258505 | O8: ='Input Data'!C93 -> 0.146 | P8: =B8 -> 0.15667 | Q8: =C8 -> 0.12299 | R8: =(B8*'Public Lighting Pricing'!C$54+C8*'Public Lighting Pricing'!C$56)/SUM('Public Lighting Pricing'!C$54,'Public Lighting Pricing'!C$56) -> 0.1534450766 | S8: =P8/$O8-1 -> 0.07308219178 | T8: -0.1576027397 | U8: 0.05099367549 | W8: =B8*'Public Lighting Pricing'!$C$109 -> 57.18455 | X8: =C8*'Public Lighting Pricing'!$C$109 -> 44.89135
A9: NPL4
A10: Major | C10: =(C4-C7)*PLAB_NPL4+C7*0.9 -> 0.291138 | E10: =ROUND(C10*(1-'Input Data'!$C$81)*(1+'Input Data'!$C$79),5) -> 0.29776 | G10: =ROUND(E10*(1-'Input Data'!$C$81)*(1+'Input Data'!$C$79),5) -> 0.30453 | I10: =ROUND(G10*(1-'Input Data'!$C$81)*(1+'Input Data'!$C$79),5) -> 0.31145 | K10: =ROUND(I10*(1-'Input Data'!$C$81)*(1+'Input Data'!$C$79),5) -> 0.31853 | O10: =(O4*SUM('Public Lighting Pricing'!C$46,'Public Lighting Pricing'!C$48)+O5*SUM('Public Lighting Pricing'!C$47,'Public Lighting Pricing'!C$49)+O7*SUM('Public Lighting Pricing'!C$53,'Public Lighting Pricing'!C$55)+O8*SUM('Public Lighting Pricing'!C$54,'Public Lighting Pricing'!C$56))*'Public Lighting Pricing'!C$109/10^6 -> 42.21271209 | P10: =(P4*'Public Lighting Pricing'!C$46+P5*'Public Lighting Pricing'!C$47+P7*'Public Lighting Pricing'!C$53+P8*'Public Lighting Pricing'!C$54)*'Public Lighting Pricing'!C$109/10^6 -> 41.21390328 | Q10: =(Q4*'Public Lighting Pricing'!C$48+Q5*'Public Lighting Pricing'!C$49+Q7*'Public Lighting Pricing'!C$55+Q8*'Public Lighting Pricing'!C$56)*'Public Lighting Pricing'!C$109/10^6 -> 2.19371193 | R10: =SUM(P10:Q10) -> 43.40761521 | S10: Revenue | U10: =R10/O10-1 -> 0.02830671283 | X10: =C10*'Public Lighting Pricing'!$C$109 -> 106.26537
A11: Minor | C11: =(C5-C8)*PLAB_NPL4+C8*0.9 -> 0.179529 | E11: =ROUND(C11*(1-'Input Data'!$C$81)*(1+'Input Data'!$C$79),5) -> 0.18361 | G11: =ROUND(E11*(1-'Input Data'!$C$81)*(1+'Input Data'!$C$79),5) -> 0.18779 | I11: =ROUND(G11*(1-'Input Data'!$C$81)*(1+'Input Data'!$C$79),5) -> 0.19206 | K11: =ROUND(I11*(1-'Input Data'!$C$81)*(1+'Input Data'!$C$79),5) -> 0.19643 | X11: =C11*'Public Lighting Pricing'!$C$109 -> 65.528085
O13: =O1 -> 2019-20 | P13: =P1 -> 2020-21 | S13: Price Movement
A14: Revised Submission Model | B14: =B2 -> Conventional | C14: =C2 -> LED | D14: Conventional | E14: LED | F14: Conventional | G14: LED | H14: Conventional | I14: LED | J14: Conventional | K14: LED | O14: All Lights | P14: CON | Q14: LED | R14: Average | S14: =P14 -> CON | T14: =Q14 -> LED | U14: =R14 -> Average | W14: =B14 -> Conventional | X14: =C14 -> LED
A15: =A3 -> NPL1 (Energex Owned & Operated)
A16: =A4 -> Major | B16: 0.84367 | C16: 0.42425 | D16: 0.86366 | E16: 0.4343 | F16: 0.88413 | G16: 0.44459 | H16: 0.90508 | I16: 0.45513 | J16: 0.92653 | K16: 0.46592 | M16: =C16/B16 -> 0.5028624936 | O16: =O4 -> 0.866 | P16: =B16 -> 0.84367 | Q16: =C16 -> 0.42425 | R16: =(B16*'Public Lighting Pricing'!C$46+C16*'Public Lighting Pricing'!C$48)/SUM('Public Lighting Pricing'!C$46,'Public Lighting Pricing'!C$48) -> 0.8074996445 | S16: =P16/$O16-1 -> -0.0257852194 | T16: =Q16/$O16-1 -> -0.5101039261 | U16: =R16/$O16-1 -> -0.06755237357 | W16: =B16*'Public Lighting Pricing'!$C$109 -> 307.93955 | X16: =C16*'Public Lighting Pricing'!$C$109 -> 154.85125
A17: Minor | B17: 0.38774 | C17: 0.25749 | D17: 0.39693 | E17: 0.26359 | F17: 0.40634 | G17: 0.26984 | H17: 0.41597 | I17: 0.27624 | J17: 0.42583 | K17: 0.28279 | M17: =C17/B17 -> 0.664079022 | O17: =O5 -> 0.398 | P17: =B17 -> 0.38774 | Q17: =C17 -> 0.25749 | R17: =(B17*'Public Lighting Pricing'!C$47+C17*'Public Lighting Pricing'!C$49)/SUM('Public Lighting Pricing'!C$47,'Public Lighting Pricing'!C$49) -> 0.3767462559 | S17: =P17/$O17-1 -> -0.02577889447 | T17: -0.353040201 | U17: -0.05340136702 | W17: =B17*'Public Lighting Pricing'!$C$109 -> 141.5251 | X17: =C17*'Public Lighting Pricing'!$C$109 -> 93.98385
A18: NPL2 (Gifted & Energex Operated)
A19: Major | B19: 0.29324 | C19: 0.1974 | D19: 0.30019 | E19: 0.20208 | F19: 0.3073 | G19: 0.20687 | H19: 0.31458 | I19: 0.21177 | J19: 0.32204 | K19: 0.21679 | M19: =C19/B19 -> 0.6731687355 | O19: =O7 -> 0.301 | P19: =B19 -> 0.29324 | Q19: =C19 -> 0.1974 | R19: =(B19*'Public Lighting Pricing'!C$53+C19*'Public Lighting Pricing'!C$55)/SUM('Public Lighting Pricing'!C$53,'Public Lighting Pricing'!C$55) -> 0.2828965501 | S19: =P19/$O19-1 -> -0.0257807309 | T19: =Q19/$O19-1 -> -0.3441860465 | U19: =R19/$O19-1 -> -0.06014435172 | W19: =B19*'Public Lighting Pricing'!$C$109 -> 107.0326 | X19: =C19*'Public Lighting Pricing'!$C$109 -> 72.051
A20: Minor | B20: 0.14224 | C20: 0.13148 | D20: 0.14561 | E20: 0.1346 | F20: 0.14906 | G20: 0.13779 | H20: 0.15259 | I20: 0.14106 | J20: 0.15621 | K20: 0.1444 | M20: =C20/B20 -> 0.9243532058 | O20: 0.146 | P20: =B20 -> 0.14224 | Q20: =C20 -> 0.13148 | R20: =(B20*'Public Lighting Pricing'!C$54+C20*'Public Lighting Pricing'!C$56)/SUM('Public Lighting Pricing'!C$54,'Public Lighting Pricing'!C$56) -> 0.1412097098 | S20: =P20/$O20-1 -> -0.02575342466 | T20: -0.09945205479 | U20: -0.03281020718 | W20: =B20*'Public Lighting Pricing'!$C$109 -> 51.9176 | X20: =C20*'Public Lighting Pricing'!$C$109 -> 47.9902
A21: NPL4
A22: Major | C22: 0.336455 | E22: 0.344426 | G22: 0.352587 | I22: 0.360945 | K22: 0.369502 | O22: =(O16*SUM('Public Lighting Pricing'!C$46,'Public Lighting Pricing'!C$48)+O17*SUM('Public Lighting Pricing'!C$47,'Public Lighting Pricing'!C$49)+O19*SUM('Public Lighting Pricing'!C$53,'Public Lighting Pricing'!C$55)+O20*SUM('Public Lighting Pricing'!C$54,'Public Lighting Pricing'!C$56))*'Public Lighting Pricing'!C$109/10^6 -> 42.21271209 | P22: =(P16*'Public Lighting Pricing'!C$46+P17*'Public Lighting Pricing'!C$47+P19*'Public Lighting Pricing'!C$53+P20*'Public Lighting Pricing'!C$54)*'Public Lighting Pricing'!C$109/10^6 -> 37.41673832 | Q22: =(Q16*'Public Lighting Pricing'!C$48+Q17*'Public Lighting Pricing'!C$49+Q19*'Public Lighting Pricing'!C$55+Q20*'Public Lighting Pricing'!C$56)*'Public Lighting Pricing'!C$109/10^6 -> 2.461046175 | R22: =SUM(P22:Q22) -> 39.87778449 | S22: Revenue | U22: =R22/O22-1 -> -0.05531337551 | X22: =C22*'Public Lighting Pricing'!$C$109 -> 122.806075
A23: Minor | C23: 0.206539 | E23: 0.211433 | G23: 0.216446 | I23: 0.22158 | K23: 0.226833 | X23: =C23*'Public Lighting Pricing'!$C$109 -> 75.386735
O24: 2018-19
O25: 42.31828263 | P25: Actual Revenue as per RIN
A26: Difference $ | B26: =B14 -> Conventional | C26: =C14 -> LED | D26: Conventional | E26: LED | F26: Conventional | G26: LED | H26: Conventional | I26: LED | J26: Conventional | K26: LED
A27: =A15 -> NPL1 (Energex Owned & Operated)
A28: =A16 -> Major | B28: =B4-B16 -> 0.08563 | C28: =C4-C16 -> -0.06143 | D28: 0.08677 | E28: -0.06323 | F28: 0.08791 | G28: -0.06508 | H28: 0.08907 | I28: -0.06699 | J28: 0.09022 | K28: -0.06896
A29: Minor | B29: =B5-B17 -> 0.03935 | C29: -0.03616 | D29: 0.03987 | E29: -0.03723 | F29: 0.0404 | G29: -0.03833 | H29: 0.04092 | I29: -0.03947 | J29: 0.04145 | K29: -0.04063
A30: NPL2 (Gifted & Energex Operated)
A31: Major | B31: =B7-B19 -> 0.02976 | C31: =C7-C19 -> -0.01158 | D31: 0.03016 | E31: -0.01204 | F31: 0.03056 | G31: -0.01251 | H31: 0.03096 | I31: -0.01299 | J31: 0.03136 | K31: -0.01349
A32: Minor | B32: =B8-B20 -> 0.01443 | C32: -0.00849 | D32: 0.01462 | E32: -0.00881 | F32: 0.01482 | G32: -0.00914 | H32: 0.01501 | I32: -0.00948 | J32: 0.01521 | K32: -0.00983
A33: NPL4
A34: Major | C34: =C10-C22 -> -0.045317 | E34: -0.046666 | G34: =G10-G22 -> -0.048057 | I34: =I10-I22 -> -0.049495 | K34: =K10-K22 -> -0.050972
A35: Minor | C35: =C11-C23 -> -0.02701 | E35: -0.027823 | G35: =G11-G23 -> -0.028656 | I35: =I11-I23 -> -0.02952 | K35: =K11-K23 -> -0.030403
A38: Difference % | B38: =B26 -> Conventional | C38: =C26 -> LED | D38: Conventional | E38: LED | F38: Conventional | G38: LED | H38: Conventional | I38: LED | J38: Conventional | K38: LED
A39: =A27 -> NPL1 (Energex Owned & Operated)
A40: =A28 -> Major | B40: =B28/B16 -> 0.1014970308 | C40: =C28/C16 -> -0.1447967001 | D40: 0.1004677767 | E40: -0.1455906056 | F40: 0.09943107914 | G40: -0.1463820599 | H40: 0.09841119017 | I40: -0.1471887153 | J40: 0.09737407315 | K40: -0.1480082418
A41: Minor | B41: =B29/B17 -> 0.1014855315 | C41: -0.1404326382 | D41: 0.1004459225 | E41: -0.1412420805 | F41: 0.09942412758 | G41: -0.142047139 | H41: 0.09837247878 | I41: -0.1428830003 | J41: 0.09733931381 | K41: -0.1436755189
A42: =A18 -> NPL2 (Gifted & Energex Operated)
A43: =A19 -> Major | B43: =B31/B19 -> 0.1014868367 | C43: -0.05866261398 | D43: 0.1004697025 | E43: -0.05958036421 | F43: 0.09944679466 | G43: -0.06047276067 | H43: 0.09841693687 | I43: -0.06134013316 | J43: 0.09737920755 | K43: -0.06222611744
A44: Minor | B44: =B32/B20 -> 0.1014482565 | C44: -0.06457255856 | D44: 0.100405192 | E44: -0.06545319465 | F44: 0.09942305112 | G44: -0.06633282531 | H44: 0.09836817616 | I44: -0.06720544449 | J44: 0.09736892645 | K44: -0.06807479224
A45: =A21 -> NPL4
A46: =A22 -> Major | C46: =C34/C22 -> -0.1346896316 | E46: -0.1354891907 | G46: =G34/G22 -> -0.1362982753 | I46: =I34/I22 -> -0.137126155 | K46: =K34/K22 -> -0.1379478325
A47: Minor | C47: =C35/C23 -> -0.1307743332 | E47: -0.1315925139 | G47: =G35/G23 -> -0.132393299 | I47: =I35/I23 -> -0.1332250203 | K47: =K35/K23 -> -0.1340325261
